bitfinex-derivatives/quotes_BNBF0:USTF0_20250807
["timestamp","ask_amount","ask_price","bid_price","bid_amount"]
[1754604909166,0.84074611,784.43,783.88,0.697]
[1754604910066,0.84121205,784.42,783.88,0.697]
[1754604910263,0.84121205,784.41,783.88,0.697]
[1754604910464,0.84121205,784.4,783.88,0.697]
[1754604910662,0.84121205,784.39,783.88,0.697]
[1754604910963,0.84121205,784.38,783.89,1.219]
[1754604911164,0.84121205,784.37,783.89,1.219]
[1754604911462,0.84121205,784.36,783.89,1.219]
[1754604911662,0.84121205,784.35,783.89,1.219]
[1754604911864,0.84121205,784.34,783.89,1.219]
[1754604912067,0.84121205,784.33,783.89,1.219]
[1754604912265,0.84121205,784.32,783.89,1.219]
[1754604912470,0.84121205,784.31,783.89,1.219]
[1754604912669,0.84121205,784.3,783.89,1.219]
[1754604912964,0.84121205,784.29,783.89,1.219]
[1754604913167,0.84121205,784.28,783.89,1.219]
[1754604913468,0.84121205,784.27,783.89,1.219]
[1754604913668,0.84121205,784.26,783.89,1.219]
[1754604913866,0.84121205,784.25,783.89,1.219]
[1754604914069,0.84121205,784.24,783.89,1.219]
[1754604914370,0.84121205,784.23,783.89,1.219]
[1754604914571,0.84121205,784.22,783.89,1.219]
[1754604914771,0.84121205,784.21,783.89,1.219]
[1754604915066,0.84121205,784.2,783.89,1.219]
[1754604915272,0.84121205,784.19,783.89,1.219]
[1754604915470,0.84121205,784.18,783.89,1.219]
[1754604915773,0.84121205,784.17,783.89,1.219]
[1754604915969,0.85817707,784.44,783.89,1.219]
[1754604916174,0.84169641,784.43,783.89,1.219]
[1754604916369,0.84169641,784.42,783.89,1.219]
[1754604916575,0.84169641,784.41,783.89,1.219]
[1754604916768,0.84169641,784.4,783.89,1.219]
[1754604916973,0.84169641,784.39,783.89,1.219]
[1754604917174,0.84169641,784.38,783.89,1.219]
[1754604917373,0.84169641,784.37,783.89,1.219]
[1754604917569,0.84169641,784.36,783.89,1.219]
[1754604917873,0.84169641,784.35,783.89,1.219]
[1754604918073,0.84169641,784.34,783.89,1.219]
[1754604918273,0.84169641,784.33,783.89,1.219]
[1754604918470,0.84169641,784.32,783.89,1.219]
[1754604918772,0.84169641,784.31,783.89,1.219]
[1754604918972,0.84169641,784.3,783.89,1.219]
[1754604919172,0.84169641,784.29,783.89,1.219]
[1754604919375,0.84169641,784.28,783.89,1.219]
[1754604919575,0.84169641,784.27,783.89,1.219]
[1754604919772,0.84169641,784.26,783.89,1.219]
[1754604919974,0.84169641,784.25,783.89,1.219]
[1754604920175,0.84169641,784.24,783.89,1.219]
[1754604920370,0.84169641,784.23,783.89,1.219]
[1754604920572,0.85817707,784.31,783.89,1.219]
[1754604920875,0.84130432,784.3,783.89,1.219]
[1754604921078,0.84130432,784.29,783.89,1.219]
[1754604921275,0.84130432,784.28,783.89,1.219]
[1754604921473,0.84130432,784.27,783.89,1.219]
[1754604921673,0.84130432,784.26,783.89,1.219]
[1754604921877,0.84130432,784.25,783.89,1.219]
[1754604922078,0.84130432,784.24,783.89,0.614]
[1754604922279,0.84130432,784.23,783.89,0.614]
[1754604922472,0.84130432,784.22,783.89,0.614]
[1754604922675,0.84130432,784.21,783.89,0.614]
[1754604922874,0.84130432,784.2,783.89,0.614]
[1754604923077,0.84130432,784.19,783.89,0.614]
[1754604923277,0.84130432,784.18,783.89,0.614]
[1754604923478,0.84130432,784.17,783.89,0.614]
[1754604923778,0.84130432,784.16,783.88,0.697]
[1754604923974,0.84130432,784.15,783.88,0.697]
[1754604924273,0.84130432,784.14,783.88,0.697]
[1754604924478,0.84130432,784.13,783.88,0.697]
[1754604924678,0.84130432,784.12,783.88,0.697]
[1754604924878,0.84130432,784.11,783.88,0.697]
[1754604925078,0.84130432,784.1,783.88,0.697]
[1754604925278,0.85817707,784.4,783.88,0.697]
[1754604925475,0.84019455,784.39,783.88,0.697]
[1754604925779,0.84019455,784.38,783.88,0.697]
[1754604926074,0.84019455,784.37,783.89,0.561]
[1754604926274,0.84019455,784.36,783.89,0.561]
[1754604926477,0.84019455,784.35,783.89,0.561]
[1754604926677,0.84019455,784.34,783.89,0.561]
[1754604926875,0.85817707,784.42,783.89,0.561]
[1754604926876,0.84019455,784.33,783.9,0.581]
[1754604927074,0.84019455,784.32,783.9,0.581]
[1754604927280,0.84019455,784.31,783.9,0.581]
[1754604927478,0.84019455,784.3,783.9,0.581]
[1754604927777,0.84019455,784.29,783.9,0.581]
[1754604929775,0.84019455,784.19,783.9,0.581]
[1754604930079,0.84019455,784.18,783.9,0.581]
[1754604930276,0.84019455,784.17,783.9,0.581]
[1754604930477,0.84019455,784.16,783.9,0.581]
[1754604930678,0.85817707,784.5,783.9,0.581]
[1754604930877,0.83964933,784.49,783.9,0.581]
[1754604931179,0.83964933,784.48,783.9,0.581]
[1754604931377,0.83964933,784.47,783.9,0.581]
[1754604931576,0.83964933,784.46,783.9,0.581]
[1754604931777,0.83964933,784.45,783.9,0.581]
[1754604931981,0.83964933,784.44,783.9,0.581]
[1754604932178,0.83964933,784.43,783.9,0.581]
[1754604932382,0.83964933,784.42,783.9,0.581]
[1754604932579,0.83964933,784.41,783.9,0.581]
[1754604932778,0.83964933,784.4,783.9,0.581]
[1754604932980,0.83964933,784.39,783.9,0.581]
[1754604933178,0.83964933,784.38,783.9,0.581]
[1754604933480,0.83964933,784.37,783.9,0.581]
[1754604933678,0.83964933,784.36,783.9,0.581]
[1754604933876,0.83964933,784.35,783.9,0.581]
[1754604934076,0.83964933,784.34,783.9,0.581]
[1754604934280,0.83964933,784.33,783.9,0.581]
[1754604934581,0.83964933,784.32,783.9,0.581]
[1754604934781,0.83964933,784.31,783.9,0.581]
[1754604934979,0.83964933,784.3,783.9,0.581]
[1754604935279,0.83964933,784.29,783.9,0.581]
[1754604935478,0.83964933,784.28,783.9,0.581]
[1754604935681,0.83964933,784.27,783.9,0.581]
[1754604935878,0.83964933,784.26,783.9,0.581]
[1754604936080,0.83964933,784.25,783.9,0.581]
[1754604936278,0.83964933,784.24,783.9,0.581]
[1754604936477,0.83964933,784.23,783.9,0.581]
[1754604936677,0.83964933,784.22,783.9,0.581]
[1754604936881,0.83964933,784.21,783.9,0.581]
[1754604937079,0.83964933,784.2,783.9,0.581]
[1754604937282,0.83964933,784.19,783.9,0.581]
[1754604937483,0.83964933,784.18,783.9,0.581]
[1754604937681,0.22189703,784.51,783.9,0.581]
[1754604937880,0.83914527,784.5,783.9,0.581]
[1754604938181,0.83914527,784.49,783.9,0.581]
[1754604938385,0.83910666,784.48,783.9,0.581]
[1754604938585,0.83910666,784.47,783.9,0.581]
[1754604938785,0.83910666,784.46,783.9,0.581]
[1754604939080,0.83910666,784.45,783.9,0.581]
[1754604939285,0.83910666,784.44,783.9,0.581]
[1754604939584,0.83910666,784.43,783.9,0.581]
[1754604939780,0.83910666,784.42,783.9,0.581]
[1754604939985,0.83910666,784.41,783.9,0.581]
[1754604940186,0.83910666,784.4,783.9,0.581]
[1754604940385,0.83910666,784.39,783.91,0.856]
[1754604940582,0.83910666,784.38,783.91,0.856]
[1754604940782,0.83910666,784.37,783.91,0.856]
[1754604940982,0.22189703,784.51,783.91,0.856]
[1754604940983,0.83910666,784.36,783.91,0.856]
[1754604941282,0.83910666,784.35,783.91,0.856]
[1754604941481,0.83910666,784.34,783.91,0.856]
[1754604941786,0.83910666,784.33,783.91,0.856]
[1754604941986,0.83910666,784.32,783.91,0.856]
[1754604942186,0.83910666,784.31,783.91,0.856]
[1754604942486,0.83910666,784.3,783.91,0.856]
[1754604942682,0.83910666,784.29,783.91,0.856]
[1754604942881,0.83910666,784.28,783.91,0.856]
[1754604943185,0.83910666,784.27,783.91,0.856]
[1754604943382,0.83910666,784.26,783.91,0.856]
[1754604943582,0.83910666,784.25,783.91,0.856]
[1754604943786,0.83910666,784.24,783.91,0.856]
[1754604943983,0.83910666,784.23,783.91,0.856]
[1754604944179,0.83910666,784.22,783.91,0.856]
[1754604944382,0.83910666,784.21,783.91,0.856]
[1754604944586,0.83910666,784.2,783.91,0.856]
[1754604944784,0.83910666,784.19,783.91,0.856]
[1754604944984,0.83910666,784.18,783.91,0.856]
[1754604945188,0.83910666,784.17,783.91,0.856]
[1754604945387,0.83910666,784.16,783.91,0.856]
[1754604945586,0.83910666,784.15,783.91,0.856]
[1754604945882,0.83910666,784.14,783.91,0.856]
[1754604946085,0.83910666,784.13,783.91,0.856]
[1754604946285,0.83910666,784.12,783.91,0.856]
[1754604946483,0.83910666,784.11,783.91,0.856]
[1754604946688,0.83910666,784.1,783.91,0.856]
[1754604946889,0.83910666,784.09,783.91,0.856]
[1754604947090,0.8567039,784.46,783.91,0.856]
[1754604947283,0.83900471,784.45,783.91,0.856]
[1754604947488,0.83900471,784.44,783.91,0.856]
[1754604947686,0.83900471,784.43,783.91,0.856]
[1754604947885,0.83900471,784.42,783.91,0.856]
[1754604948089,0.83900471,784.41,783.91,0.856]
[1754604948289,0.83900471,784.4,783.91,0.856]
[1754604948490,0.83900471,784.39,783.91,0.856]
[1754604948689,0.83900471,784.38,783.91,0.856]
[1754604948885,0.83900471,784.37,783.91,0.856]
[1754604949085,0.83900471,784.36,783.91,0.856]
[1754604949387,0.83900471,784.35,783.91,0.856]
[1754604949590,0.83900471,784.34,783.91,0.856]
[1754604949784,0.83900471,784.33,783.91,0.856]
[1754604949985,0.83900471,784.32,783.91,0.856]
[1754604950189,0.83900471,784.31,783.92,0.602]
[1754604950490,0.83900471,784.3,783.92,0.602]
[1754604950689,0.83900471,784.29,783.92,0.602]
[1754604950890,0.83900471,784.28,783.92,0.602]
[1754604951189,0.83900471,784.27,783.92,0.602]
[1754604951390,0.83900471,784.26,783.92,0.602]
[1754604951686,0.83900471,784.25,783.92,0.602]
[1754604951890,0.83900471,784.24,783.92,0.602]
[1754604952089,0.83900471,784.23,783.92,0.602]
[1754604952290,0.22189703,784.51,783.92,0.602]
[1754604952291,0.83900471,784.22,783.92,0.602]
[1754604952490,0.83900471,784.21,783.92,0.602]
[1754604952689,0.83900471,784.2,783.92,0.602]
[1754604952891,0.83900471,784.19,783.92,0.602]
[1754604953191,0.83900471,784.18,783.92,0.602]
[1754604953493,0.83900471,784.17,783.92,0.602]
[1754604953789,0.83900471,784.16,783.92,0.602]
[1754604953992,0.83900471,784.15,783.92,0.602]
[1754604954189,0.83900471,784.14,783.92,0.602]
[1754604954389,0.83900471,784.13,783.92,0.602]
[1754604954594,0.83900471,784.12,783.92,0.602]
[1754604954794,0.83900471,784.11,783.92,0.602]
[1754604954995,0.83900471,784.1,783.92,0.602]
[1754604955291,0.83900471,784.09,783.92,0.602]
[1754604955494,0.83900471,784.08,783.92,0.602]
[1754604955791,0.83900471,784.07,783.92,0.602]
[1754604955994,0.83900471,784.06,783.92,0.602]
[1754604956189,0.8567039,784.39,783.92,0.602]
[1754604956394,0.83910667,784.38,783.92,0.602]
[1754604956595,0.83910667,784.37,783.92,0.602]
[1754604956796,0.83910667,784.36,783.92,0.602]
[1754604957090,0.83910667,784.35,783.92,0.602]
[1754604957292,0.83910667,784.34,783.92,0.602]
[1754604957495,0.83910667,784.33,783.92,0.602]
[1754604957695,0.83910667,784.32,783.92,0.602]
[1754604957990,0.83910667,784.31,783.92,0.602]
[1754604958189,0.83910667,784.3,783.92,0.602]
[1754604958392,0.83910667,784.29,783.92,0.602]
[1754604958592,0.83910667,784.28,783.92,0.602]
[1754604958792,0.83910667,784.27,783.92,0.602]
[1754604958996,0.83910667,784.26,783.92,0.602]
[1754604959194,0.83910667,784.25,783.92,0.602]
[1754604959394,0.83910667,784.24,783.92,0.602]
[1754604959603,0.83910667,784.23,783.92,0.602]
[1754604959898,0.83910667,784.22,783.92,0.602]
[1754604960101,0.83910667,784.21,783.92,0.602]
[1754604960299,0.83910667,784.2,783.92,0.602]
[1754604960596,0.83910667,784.19,783.92,0.602]
[1754604960795,0.83910667,784.18,783.92,0.602]
[1754604961001,0.83910667,784.17,783.92,0.602]
[1754604961197,0.83910667,784.16,783.92,0.602]
[1754604961399,0.83910667,784.15,783.92,0.602]
[1754604961596,0.83910667,784.14,783.92,0.602]
[1754604961797,0.8567039,784.41,783.92,0.602]
[1754604961998,0.83996978,784.4,783.92,0.602]
[1754604962196,0.83996978,784.39,783.92,0.602]
[1754604962402,0.83996978,784.38,783.92,0.602]
[1754604962701,0.83996978,784.37,783.92,0.602]
[1754604962901,0.83996978,784.36,783.92,0.602]
[1754604963100,0.83996978,784.35,783.92,0.602]
[1754604963301,0.83996978,784.34,783.92,0.602]
[1754604963498,0.83996978,784.33,783.92,0.602]
[1754604963699,0.83996978,784.32,783.92,0.602]
[1754604963903,0.83996978,784.31,783.92,0.602]
[1754604964098,0.83996978,784.3,783.92,0.602]
[1754604964303,0.83996978,784.29,783.92,0.602]
[1754604964603,1.07860093,784.51,783.92,0.602]
[1754604964604,0.83996978,784.28,783.92,0.602]
[1754604964800,0.83996978,784.27,783.92,0.602]
[1754604965002,0.83996978,784.26,783.92,0.602]
[1754604965199,0.83996978,784.25,783.92,0.602]
[1754604965500,0.8567039,784.5,783.92,0.602]
[1754604965799,0.84028276,784.49,783.92,0.602]
[1754604965998,0.84028276,784.48,783.92,0.602]
[1754604966199,0.84028276,784.47,783.92,0.602]
[1754604966399,0.84028276,784.46,783.92,0.602]
[1754604966700,0.84028276,784.45,783.92,0.602]
[1754604966903,0.84028276,784.44,783.92,0.602]
[1754604967104,0.84028276,784.43,783.92,0.602]
[1754604967405,0.84028276,784.42,783.93,0.651]
[1754604967604,0.84028276,784.41,783.93,0.651]
[1754604967803,0.84028276,784.4,783.93,0.651]
[1754604968002,0.84028276,784.39,783.93,0.651]
[1754604968204,0.84028276,784.38,783.93,0.651]
[1754604968407,0.84028276,784.37,783.93,0.651]
[1754604968607,0.84028276,784.36,783.93,0.651]
[1754604968808,0.84028276,784.35,783.93,0.651]
[1754604969008,0.84028276,784.34,783.93,0.651]
[1754604969206,0.84028276,784.33,783.93,0.651]
[1754604969408,0.84028276,784.32,783.93,0.651]
[1754604969609,0.84028276,784.31,783.93,0.651]
[1754604969809,0.84028276,784.3,783.93,0.651]
[1754604970004,0.84028276,784.29,783.93,0.651]
[1754604970205,0.84028276,784.28,783.93,0.651]
[1754604970410,0.84028276,784.27,783.93,0.651]
[1754604970610,0.84028276,784.26,783.93,0.651]
[1754604970810,0.84028276,784.25,783.93,0.651]
[1754604971010,0.84028276,784.24,783.93,0.651]
[1754604971210,0.84028276,784.23,783.93,0.651]
[1754604971506,0.84028276,784.22,783.93,0.651]
[1754604971710,0.84028276,784.21,783.93,0.651]
[1754604971911,0.84028276,784.2,783.93,0.651]
[1754604972107,0.22191259,784.38,783.93,0.651]
[1754604972307,0.84053337,784.37,783.93,0.651]
[1754604972507,0.84053337,784.36,783.93,0.651]
[1754604972706,0.84053337,784.35,783.93,0.651]
[1754604972907,0.84053337,784.34,783.94,0.693]
[1754604973211,0.84053337,784.33,783.94,0.693]
[1754604973411,0.84053337,784.32,783.94,0.693]
[1754604973613,0.84054007,784.31,783.94,0.693]
[1754604973811,0.84054007,784.3,783.94,0.693]
[1754604974011,0.84054007,784.29,783.94,0.693]
[1754604974210,0.84054007,784.28,783.94,0.693]
[1754604974409,0.84054007,784.27,783.94,0.693]
[1754604974608,0.84054007,784.26,783.94,0.693]
[1754604974807,0.84054007,784.25,783.94,0.693]
[1754604975008,0.84054007,784.24,783.94,0.693]
[1754604975209,0.84054007,784.23,783.94,0.693]
[1754604975407,0.84054007,784.22,783.94,0.693]
[1754604975708,0.84054007,784.21,783.94,0.693]
[1754604975912,0.22191259,784.38,783.94,0.693]
[1754604976111,0.84055591,784.37,783.94,0.693]
[1754604976312,0.84055591,784.36,783.94,0.693]
[1754604976511,0.84055591,784.35,783.94,0.693]
[1754604976810,0.84055591,784.34,783.94,0.693]
[1754604977010,0.84055591,784.33,783.94,0.693]
[1754604977313,0.84055591,784.32,783.94,0.693]
[1754604977511,0.84055591,784.31,783.94,0.693]
[1754604977814,0.84055591,784.3,783.94,0.693]
[1754604978016,0.84055591,784.29,783.94,0.693]
[1754604978311,0.84055591,784.28,783.94,0.693]
[1754604978510,0.84055591,784.27,783.94,0.693]
[1754604978712,0.84055591,784.26,783.94,0.693]
[1754604979015,0.84055591,784.25,783.94,0.693]
[1754604979215,0.84055591,784.24,783.94,0.693]
[1754604979514,0.84055591,784.23,783.94,0.693]
[1754604979713,0.84055591,784.22,783.94,0.693]
[1754604980011,0.84055591,784.21,783.94,0.693]
[1754604980210,0.84055591,784.2,783.94,0.693]
[1754604980512,0.22191259,784.38,783.94,0.693]
[1754604980712,0.84044727,784.37,783.94,0.693]
[1754604980913,0.84044727,784.36,783.94,0.693]
[1754604981113,0.84044727,784.35,783.94,0.693]
[1754604981312,0.84044727,784.34,783.94,0.693]
[1754604981514,0.84044727,784.33,783.95,0.747]
[1754604981712,0.84044727,784.32,783.95,0.747]
[1754604981914,0.84044727,784.31,783.95,0.747]
[1754604982117,0.84044727,784.3,783.95,0.747]
[1754604982314,0.84044727,784.29,783.95,0.747]
[1754604982517,0.84044727,784.28,783.95,0.747]
[1754604982817,0.84044727,784.27,783.95,0.747]
[1754604983012,0.84044727,784.26,783.95,0.747]
[1754604983214,0.84044727,784.25,783.95,0.747]
[1754604983417,0.84044727,784.24,783.95,0.747]
[1754604983613,0.84044727,784.23,783.95,0.747]
[1754604983817,0.84044727,784.22,783.95,0.747]
[1754604984018,0.84044727,784.21,783.95,0.747]
[1754604984218,0.84044727,784.2,783.95,0.747]
[1754604984414,0.84044727,784.19,783.95,0.747]
[1754604984713,0.22191259,784.38,783.95,0.747]
[1754604985019,0.84030165,784.37,783.95,0.747]
[1754604985317,0.84030165,784.36,783.95,0.747]
[1754604985517,0.84030165,784.35,783.95,0.747]
[1754604985814,0.84030165,784.34,783.95,0.747]
[1754604986017,0.84030165,784.33,783.95,0.747]
[1754604986314,0.84030165,784.32,783.95,0.747]
[1754604986517,0.84030165,784.31,783.95,0.747]
[1754604986712,0.84030165,784.3,783.95,0.747]
[1754604986913,0.84030165,784.29,783.95,0.747]
[1754604987218,0.84030165,784.28,783.95,0.747]
[1754604987517,0.84030165,784.27,783.95,0.747]
[1754604987713,0.84030165,784.26,783.95,0.747]
[1754604987917,0.84030165,784.25,783.95,0.747]
[1754604988119,0.84030165,784.24,783.95,0.747]
[1754604988319,0.84030165,784.23,783.95,0.747]
[1754604988515,0.84030165,784.22,783.95,0.747]
[1754604988817,0.84030165,784.21,783.95,0.747]
[1754604989016,0.22191259,784.38,783.95,0.747]
[1754604989221,0.83976289,784.37,783.95,0.747]
[1754604989517,0.83976289,784.36,783.95,0.747]
[1754604989717,0.83976289,784.35,783.95,0.747]
[1754604989918,0.83976289,784.34,783.95,0.747]
[1754604990121,0.83976289,784.33,783.95,0.747]
[1754604990322,0.83976289,784.32,783.95,0.747]
[1754604990622,0.83976289,784.31,783.95,0.747]
[1754604990923,0.83976289,784.3,783.95,0.747]
[1754604991125,0.83976289,784.29,783.95,0.747]
[1754604991319,0.83976289,784.28,783.95,0.747]
[1754604991518,0.83976289,784.27,783.95,0.747]
[1754604991719,0.83976289,784.26,783.95,0.747]
[1754604991919,0.83976289,784.25,783.95,0.747]
[1754604992119,0.83976289,784.24,783.95,0.747]
[1754604992323,0.83976289,784.23,783.95,0.747]
[1754604992618,0.22191259,784.38,783.95,0.747]
[1754604992619,0.83976289,784.22,783.95,0.747]
[1754604992823,0.22191259,784.38,783.95,0.747]
[1754604993023,0.83971532,784.37,783.95,0.747]
[1754604993223,0.83971532,784.36,783.95,0.747]
[1754604993424,0.83971532,784.35,783.95,0.747]
[1754604993724,0.83971532,784.34,783.95,0.747]
[1754604993923,0.83971532,784.33,783.95,0.747]
[1754604994123,0.83971532,784.32,783.95,0.747]
[1754604994323,0.83971532,784.31,783.95,0.747]
[1754604994623,0.83971532,784.3,783.94,0.693]
[1754604994918,0.22191259,784.38,783.94,0.693]
[1754604994919,0.83971532,784.29,783.94,0.693]
[1754604995122,0.83971532,784.28,783.94,0.693]
[1754604995323,0.83971532,784.27,783.94,0.693]
[1754604995521,0.83971532,784.26,783.94,0.693]
[1754604995720,0.83971532,784.25,783.94,0.693]
[1754604995921,0.22191259,784.38,783.94,0.693]
[1754604995922,0.83971532,784.24,783.94,0.693]
[1754604996123,0.83971532,784.23,783.94,0.693]
[1754604996320,0.83971532,784.22,783.94,0.693]
[1754604996519,0.83971532,784.21,783.94,0.693]
[1754604996722,0.83971532,784.2,783.94,0.693]
[1754604996925,0.83971532,784.19,783.95,0.778]
[1754604997125,0.22191259,784.38,783.95,0.778]
[1754604997322,0.83985709,784.37,783.95,0.778]
[1754604997625,0.83985709,784.36,783.95,0.778]
[1754604997824,0.83985709,784.35,783.95,0.778]
[1754604998121,0.83985709,784.34,783.95,0.778]
[1754604998322,0.83985709,784.33,783.95,0.778]
[1754604998525,0.83985709,784.32,783.95,0.778]
[1754604998722,0.83985709,784.31,783.95,0.778]
[1754604998924,0.83985709,784.3,783.95,0.778]
[1754604999125,0.83985709,784.29,783.95,0.778]
[1754604999325,0.83985709,784.28,783.95,0.778]
[1754604999526,0.83985709,784.27,783.95,0.778]
[1754604999726,0.83985709,784.26,783.95,0.778]
[1754604999921,0.83985709,784.25,783.95,0.778]
[1754605000126,0.83988635,784.24,783.95,0.778]
[1754605000426,0.83988635,784.23,783.95,0.778]
[1754605000726,0.83988635,784.22,783.95,0.778]
[1754605001031,0.83988635,784.21,783.95,0.778]
[1754605001227,0.83988635,784.2,783.95,0.778]
[1754605001522,0.83988635,784.19,783.95,0.778]
[1754605001723,0.83988635,784.18,783.95,0.778]
[1754605001927,0.83988635,784.17,783.95,0.778]
[1754605002126,0.22191259,784.38,783.95,0.778]
[1754605002429,0.83993325,784.37,783.95,0.778]
[1754605002726,0.83993325,784.36,783.95,0.778]
[1754605002923,0.83993325,784.35,783.95,0.778]
[1754605003124,0.83993325,784.34,783.95,0.778]
[1754605003328,0.83993325,784.33,783.95,0.778]
[1754605003529,0.83993325,784.32,783.95,0.778]
[1754605003723,0.83993325,784.31,783.95,0.778]
[1754605003927,0.83993325,784.3,783.95,0.778]
[1754605004125,0.83993325,784.29,783.95,0.778]
[1754605004329,0.83993325,784.28,783.95,0.778]
[1754605004630,0.83993325,784.27,783.95,0.778]
[1754605004828,0.83993325,784.26,783.95,0.778]
[1754605005125,0.83993325,784.25,783.95,0.778]
[1754605005325,0.83993325,784.24,783.95,0.778]
[1754605005529,0.83993325,784.23,783.95,0.778]
[1754605005729,0.83993325,784.22,783.95,0.778]
[1754605005926,0.84005896,784.21,783.95,0.778]
[1754605006130,0.84005896,784.2,783.95,0.778]
[1754605006327,0.84005896,784.19,783.95,0.778]
[1754605006527,0.84005896,784.18,783.95,0.778]
[1754605006731,0.84005896,784.17,783.95,0.778]
[1754605006928,0.84005896,784.16,783.95,0.778]
[1754605007127,0.84005896,784.15,783.95,0.778]
[1754605007330,0.84005896,784.14,783.95,0.778]
[1754605007528,0.84005896,784.13,783.95,0.778]
[1754605007732,0.84005896,784.12,783.95,0.778]
[1754605007933,0.84005896,784.11,783.95,0.778]
[1754605008233,0.22191259,784.38,783.95,0.778]
[1754605008234,0.84005896,784.1,783.95,0.778]
[1754605008533,0.84005896,784.09,783.95,0.778]
[1754605008730,0.8567039,784.33,783.95,0.778]
[1754605008929,0.84036454,784.32,783.95,0.778]
[1754605009233,0.84036454,784.31,783.95,0.778]
[1754605009428,0.84036454,784.3,783.95,0.778]
[1754605009629,0.84036454,784.29,783.95,0.778]
[1754605009828,0.84036454,784.28,783.95,0.778]
[1754605010029,0.84036454,784.27,783.95,0.778]
[1754605010228,0.84036454,784.26,783.95,0.778]
[1754605010432,0.84036454,784.25,783.95,0.778]
[1754605010630,0.84036454,784.24,783.95,0.778]
[1754605010828,0.84036454,784.23,783.95,0.778]
[1754605011035,0.84036454,784.22,783.95,0.778]
[1754605011233,0.84036454,784.21,783.95,0.778]
[1754605011433,0.22191259,784.38,783.95,0.778]
[1754605011434,0.84036454,784.2,783.95,0.778]
[1754605011729,0.84036454,784.19,783.95,0.778]
[1754605011930,0.84036454,784.18,783.95,0.778]
[1754605012130,0.84036454,784.17,783.95,0.778]
[1754605012331,0.84036454,784.16,783.95,0.778]
[1754605012634,0.84036454,784.15,783.95,0.778]
[1754605012830,0.84036454,784.14,783.95,0.778]
[1754605013031,0.8567039,784.31,783.95,0.778]
[1754605013032,0.84036454,784.13,783.95,0.778]
[1754605013334,0.84036454,784.12,783.95,0.778]
[1754605013530,0.84036454,784.11,783.95,0.778]
[1754605013734,0.84036454,784.1,783.95,0.778]
[1754605013928,0.8567039,784.32,783.94,0.693]
[1754605014133,0.84097173,784.31,783.94,0.693]
[1754605014331,0.84097173,784.3,783.94,0.693]
[1754605014934,0.84097173,784.29,783.94,0.693]
[1754605015134,0.84097173,784.28,783.94,0.693]
[1754605015336,0.84097173,784.27,783.94,0.693]
[1754605015632,0.84097173,784.26,783.94,0.693]
[1754605015931,0.84097173,784.25,783.94,0.693]
[1754605016135,0.84097173,784.24,783.94,0.693]
[1754605016336,0.84097173,784.23,783.94,0.693]
[1754605016536,0.84097173,784.22,783.94,0.693]
[1754605016733,0.84097173,784.21,783.94,0.693]
[1754605016933,0.84097173,784.2,783.94,0.693]
[1754605017135,0.84097173,784.19,783.94,0.693]
[1754605017337,0.84097173,784.18,783.94,0.693]
[1754605017535,0.84097173,784.17,783.94,0.693]
[1754605017735,0.84097173,784.16,783.95,0.784]
[1754605017936,0.84097173,784.15,783.95,0.784]
[1754605018137,0.84097173,784.14,783.95,0.784]
[1754605018441,0.84097173,784.13,783.95,0.784]
[1754605018641,0.84097173,784.12,783.95,0.784]
[1754605018842,0.84097173,784.11,783.95,0.784]
[1754605019041,0.84097173,784.1,783.95,0.784]
[1754605019341,0.84097173,784.09,783.95,0.784]